fUSD/lending_fUSD_20250607
["ID","MTS","AMOUNT","RATE_DAILY","PERIOD"]
[364939755,1749323446887,-151.0,0.00018724,2]
[364939756,1749323446902,-151.0,0.00018724,2]
[364939757,1749323446917,-151.0,0.00018724,2]
[364939758,1749323446929,-151.0,0.00018724,2]
[364939759,1749323446943,-151.0,0.00018724,2]
[364939760,1749323446959,-151.0,0.00018724,2]
[364939761,1749323446974,-151.0,0.00018724,2]
[364939762,1749323446989,-151.0,0.00018724,2]
[364939763,1749323447005,-151.0,0.00018724,2]
[364939764,1749323447021,-151.0,0.00018724,2]
[364939765,1749323447035,-151.0,0.00018724,2]
[364939766,1749323447051,-151.0,0.00018724,2]
[364939767,1749323447066,-151.0,0.00018724,2]
[364939768,1749323447080,-151.0,0.00018724,2]
[364939769,1749323447096,-151.0,0.00018724,2]
[364939770,1749323447110,-151.0,0.00018724,2]
[364939771,1749323447125,-151.0,0.00018724,2]
[364939772,1749323447140,-151.0,0.00018724,2]
[364939773,1749323447155,-151.0,0.00018724,2]
[364939774,1749323447169,-151.0,0.00018724,2]
[364939775,1749323447181,-151.0,0.00018724,2]
[364939776,1749323447194,-151.0,0.00018724,2]
[364939777,1749323447207,-151.0,0.00018724,2]
[364939778,1749323447225,-151.0,0.00018724,2]
[364939779,1749323447237,-151.0,0.00018724,2]
[364939780,1749323447248,-151.0,0.00018724,2]
[364939781,1749323447260,-151.0,0.00018724,2]
[364939782,1749323447275,-151.0,0.00018724,2]
[364939783,1749323447292,-151.0,0.00018724,2]
[364939784,1749323447304,-151.0,0.00018724,2]
[364939785,1749323447316,-151.0,0.00018724,2]
[364939786,1749323447328,-151.0,0.00018724,2]
[364939787,1749323447341,-151.0,0.00018724,2]
[364939788,1749323447358,-151.0,0.00018724,2]
[364939789,1749323447371,-151.0,0.00018724,2]
[364939790,1749323447385,-151.0,0.00018724,2]
[364939791,1749323447398,-151.0,0.00018724,2]
[364939792,1749323447411,-151.0,0.00018724,2]
[364939793,1749323447423,-151.0,0.00018724,2]
[364939794,1749323447436,-173.053783,0.00018724,2]
[364939795,1749323447449,-173.053783,0.00018724,2]
[364939796,1749323447462,-173.053783,0.00018724,2]
[364939797,1749323447475,-173.053783,0.00018724,2]
[364939798,1749323447488,-151.0,0.00018724,2]
[364939799,1749323447500,-151.0,0.00018724,2]
[364939800,1749323447514,-151.0,0.00018724,2]
[364939801,1749323447526,-151.0,0.00018724,2]
[364939802,1749323447539,-151.0,0.00018724,2]
[364939803,1749323447552,-151.0,0.00018724,2]
[364939804,1749323447567,-2434.74389024,0.00018727,2]
[364939805,1749323447579,-200.0,0.00018731,2]
[364939806,1749323447592,-250.0,0.00018769,2]
[364939807,1749323447604,-600.0,0.00018778,4]
[364939808,1749323447617,-2524.82941417,0.00018782,2]
[364939809,1749323447630,-151.0,0.000188,2]
[364939810,1749323447643,-644.436408,0.000188,2]
[364939811,1749323447657,-644.436408,0.000188,2]
[364939812,1749323447670,-796.51,0.000188,2]
[364939813,1749323447684,-169.321548,0.000188,2]
[364939814,1749323447697,-151.0,0.000188,2]
[364939815,1749323447709,-151.0,0.000188,2]
[364939816,1749323447723,-151.0,0.00018813,2]
[364939817,1749323447737,-644.436408,0.00018813,2]
[364939818,1749323447750,-644.436408,0.00018813,2]
[364939819,1749323447763,-250.0,0.00018815,2]
[364939820,1749323447777,-600.0,0.00018815,4]
[364939821,1749323447790,-1703.69146681,0.0001882,2]
[364939822,1749323447802,-151.0,0.00018823,2]
[364939823,1749323447815,-151.0,0.00018824,2]
[364939824,1749323447827,-151.0,0.00018824,2]
[364939825,1749323447840,-644.436408,0.00018824,2]
[364939826,1749323447854,-644.43641144,0.00018824,2]
[364939827,1749323447867,-151.0,0.00018834,2]
[364939828,1749323447880,-151.0,0.00018835,2]
[364939829,1749323447894,-151.0,0.00018835,2]
[364939830,1749323447907,-180.27294,0.00018835,2]
[364939831,1749323447920,-151.0,0.00018835,2]
[364939832,1749323447933,-151.0,0.00018835,2]
[364939833,1749323447945,-151.0,0.00018835,2]
[364939834,1749323447958,-151.0,0.00018835,2]
[364939835,1749323447971,-151.0,0.00018835,2]
[364939836,1749323447984,-151.0,0.00018835,2]
[364939837,1749323447996,-151.0,0.00018835,2]
[364939838,1749323448010,-196.093713,0.00018835,2]
[364939839,1749323448023,-151.0,0.00018835,2]
[364939840,1749323448037,-151.0,0.00018835,2]
[364939841,1749323448050,-151.0,0.00018835,2]
[364939842,1749323448063,-171.445012,0.00018835,2]
[364939843,1749323448076,-151.0,0.00018835,2]
[364939844,1749323448089,-151.0,0.00018835,2]
[364939845,1749323448103,-151.0,0.00018835,2]
[364939846,1749323448116,-199.828894,0.00018835,2]
[364939847,1749323448130,-291.519543,0.00018835,2]
[364939848,1749323448144,-2618.2481025,0.00018837,2]
[364939849,1749323448158,-151.0,0.00018838,2]
[364939850,1749323448171,-151.0,0.00018848,2]
[364939851,1749323448185,-151.0,0.00018849,2]
[364939852,1749323448200,-151.0,0.00018877,2]
[364939853,1749323448212,-151.0,0.00018877,2]
[364939854,1749323448226,-2715.12328229,0.00018892,2]
[364939855,1749323448239,-151.0,0.00018899,2]
[364939856,1749323448252,-151.0,0.00018899,2]
[364939857,1749323448266,-796.51,0.000189,2]
[364939858,1749323448279,-796.51,0.000189,2]
[364939859,1749323448293,-796.51,0.000189,2]
[364939860,1749323448306,-571.0,0.00018918,2]
[364939861,1749323448320,-1703.69146681,0.0001893,2]
[364939862,1749323448332,-2815.58284374,0.00018947,2]
[364939863,1749323448346,-151.0,0.00018964,2]
[364939864,1749323448359,-151.0,0.00018964,2]
[364939865,1749323448373,-151.0,0.00018964,2]
[364939866,1749323448386,-196.076121,0.00018964,2]
[364939867,1749323448399,-151.0,0.00018964,2]
[364939868,1749323448412,-199.478254,0.00018974,2]
[364939869,1749323448425,-199.478254,0.00018974,2]
[364939870,1749323448438,-151.0,0.00018974,2]
[364939871,1749323448452,-151.0,0.00018974,2]
[364939872,1749323448465,-151.0,0.00018974,2]
[364939873,1749323448478,-176.401811,0.00018974,2]
[364939874,1749323448492,-296.962481,0.00018974,2]
[364939875,1749323448505,-176.401811,0.00018974,2]
[364939876,1749323448519,-296.962481,0.00018974,2]
[364939877,1749323448532,-916.59,0.0001899,2]
[364939878,1749323448542,-1255.0,0.00018994,2]
[364939879,1749323448552,-153.89922014,0.00018999,2]
[364939880,1749323448565,-213.28468008,0.00018999,2]
[364939881,1749323448575,-428.18274117,0.00018999,2]
[364939882,1749323448585,-20954.01039598,0.00019,2]
[364939883,1749323448601,-378.392,0.00019,2]
[364939891,1749323482092,377.16,0.00013699,2]
[364939926,1749324167340,820.63,0.00015965,2]
[364939927,1749324196323,-200.0,0.00017253,2]
[364939930,1749324386199,943.5552265,0.000175,2]
[364940051,1749324491525,200.0,0.00016801,2]
[364940052,1749324491792,200.0,0.00017362,2]
[364940080,1749324554342,-197.66194654,0.0002,120]
[364940176,1749324577858,365.93,0.00013699,2]
[364940177,1749324579714,-300.0,0.00017872,2]
[364940178,1749324579740,-9700.0,0.00017873,2]
[364940182,1749324581010,-6768.82,0.00017873,2]
[364940183,1749324581033,-329.0,0.00017883,2]
[364940184,1749324581055,-1000.0,0.00017899,2]
[364940185,1749324581077,-162.95,0.00017923,2]
[364940186,1749324581101,-200.0,0.00017923,3]
[364940187,1749324581126,-1539.23,0.00018,2]
[364940188,1749324581797,-10000.0,0.00018,2]
[364940189,1749324582651,-10000.0,0.00018,2]
[364940190,1749324583137,-10000.0,0.00018,2]
[364940191,1749324583880,-10000.0,0.00018,2]
[364940192,1749324584737,-10000.0,0.00018,2]
[364940193,1749324586408,-10000.0,0.00018,2]
[364940194,1749324587614,-10000.0,0.00018,2]
[364940195,1749324589310,-10000.0,0.00018,2]
[364940196,1749324593823,-10000.0,0.00018,2]
[364940197,1749324596528,-10000.0,0.00018,2]
[364940198,1749324600337,-7883.72752374,0.00018,2]
[364940202,1749324608531,-461.4,0.00021,65]
[364940211,1749324631590,-150.0,0.0001809,7]
[364940212,1749324631602,-168.41,0.00018139,2]
[364940213,1749324631612,-244.83,0.00018187,2]
[364940214,1749324631622,-820.63,0.00018229,2]
[364940215,1749324631632,-163.25,0.00018356,2]
[364940216,1749324631642,-163.25,0.00018356,2]
[364940217,1749324631651,-200.0,0.00018484,4]
[364940218,1749324631662,-167.19,0.00018486,2]
[364940219,1749324631671,-1200.0,0.00018499,2]
[364940220,1749324631681,-1345.89,0.000185,2]
[364940221,1749324631691,-1612.81,0.000185,2]
[364940222,1749324631702,-163.25,0.000185,2]
[364940223,1749324631712,-250.0,0.00018522,2]
[364940224,1749324631722,-1957.856,0.0001871,2]
[364940225,1749324631731,-207.4,0.0001871,2]
[364940226,1749324631742,-327.702791,0.0001871,2]
[364940227,1749324631751,-1000.0,0.00018755,2]
[364940228,1749324631761,-2030.296672,0.00018765,2]
[364940229,1749324631770,-678.67233755,0.00018788,2]
[364940230,1749324631780,-150.0,0.00018806,2]
[364940231,1749324631789,-2105.41764886,0.0001882,2]
[364940232,1749324631799,-678.67233741,0.0001883,2]
[364940233,1749324631809,-2000.0,0.00018847,2]
[364940234,1749324631818,-2000.0,0.00018848,2]
[364940235,1749324631827,-2000.0,0.00018848,2]
[364940236,1749324631839,-200.0,0.00018848,2]
[364940237,1749324631849,-678.67233741,0.00018871,2]
[364940238,1749324631860,-2183.31810187,0.00018875,2]
[364940239,1749324631870,-1000.0,0.00018888,2]
[364940241,1749324631880,-150.0,0.00018894,2]
[364940243,1749324631890,-678.67233741,0.00018913,2]
[364940245,1749324631900,-150.0,0.00018922,2]
[364940246,1749324631910,-150.0,0.00018925,2]
[364940247,1749324631920,-2264.10087164,0.0001893,2]
[364940248,1749324631929,-1000.0,0.0001894,2]
[364940249,1749324631940,-678.67233741,0.00018955,2]
[364940250,1749324631950,-500.0,0.00018973,2]
[364940251,1749324631960,-150.0,0.00018973,2]
[364940253,1749324631970,-150.0,0.00018973,2]
[364940255,1749324631979,-150.0,0.00018981,2]
[364940257,1749324631990,-2347.87260389,0.00018985,2]
[364940259,1749324632000,-151.0,0.00018987,2]
[364940261,1749324632010,-500.0,0.00018987,2]
[364940263,1749324632021,-500.0,0.00018987,2]
[364940265,1749324632033,-573.2153976,0.00018987,2]
[364940267,1749324632044,-299.72791882,0.0001899,2]
[364940270,1749324632053,-10844.27565807,0.00018991,2]
[364940273,1749324632067,-10284.97805823,0.00018991,2]
[364940275,1749324632076,-32725.81907177,0.00018991,2]
[364940605,1749324637402,-1022.21488014,0.00018892,2]
[364940606,1749324637412,-1444.38283,0.00018991,2]
[364940607,1749324637427,-3110.01716113,0.00018991,2]
[364940608,1749324637442,-2048.003565,0.00018991,2]
[364940609,1749324637456,-4059.62035122,0.00018991,2]
[364940610,1749324637470,-3158.92017496,0.00018991,2]
[364940611,1749324637485,-3216.39240752,0.00018991,2]
[364940612,1749324637496,-696.66495046,0.00018991,2]
[364940613,1749324637505,-271.09882302,0.00018991,2]
[364940614,1749324637519,-5130.0,0.00018991,2]
[364940615,1749324637532,-615.91945018,0.00018991,2]
[364940616,1749324637543,-61148.10755422,0.00018991,2]
[364940628,1749324639843,-735.03638534,0.00018991,2]
[364940629,1749324641494,205.0,0.00016801,2]
[364940643,1749324645928,-25187.04772704,0.00018991,2]
[364940644,1749324645938,-211.589,0.00018992,2]
[364940645,1749324645949,-296.54,0.00018992,2]
[364940646,1749324645959,-7018.0,0.00018992,2]
[364940647,1749324645969,-1164.0,0.00018992,2]
[364940648,1749324645979,-4082.0,0.00018992,2]
[364940649,1749324645989,-944.0,0.00018992,2]
[364940650,1749324645999,-678.67233741,0.00018997,2]
[364940651,1749324646009,-8187.35275997,0.00019,2]
[364940652,1749324646019,-1013.0,0.00019,2]
[364940654,1749324646033,-1000.0,0.00019,2]
[364940655,1749324646043,-151.0,0.00019,2]
[364940656,1749324646058,-151.0,0.00019,2]
[364940657,1749324646068,-151.0,0.00019,2]
[364940658,1749324646079,-250.0,0.00019,2]
[364940659,1749324646089,-796.51,0.00019,2]
[364940660,1749324646099,-1022.21488008,0.00019004,2]
[364940661,1749324646109,-678.67233741,0.00019038,2]
[364940662,1749324646119,-2434.74389024,0.0001904,2]
[364940663,1749324646129,-200.0,0.00019045,5]
[364940664,1749324646139,-678.67233741,0.0001908,2]
[364940665,1749324646149,-2524.82941417,0.00019095,2]
[364940666,1749324646159,-796.51,0.000191,2]
[364940667,1749324646169,-796.51,0.000191,2]
[364940668,1749324646179,-237.0,0.000191,2]
[364940669,1749324646189,-376.0,0.000191,2]
[364940670,1749324646198,-768.0,0.000191,2]
[364940671,1749324646209,-1022.21488008,0.00019116,2]
[364940672,1749324646218,-678.67233741,0.00019122,2]
[364940673,1749324646228,-303.25,0.00019126,2]
[364940674,1749324646238,-2618.2481025,0.0001915,2]
[364940675,1749324646247,-150.0,0.00019163,2]
[364940676,1749324646258,-678.67233741,0.00019164,2]
[364940677,1749324646268,-151.0,0.00019184,2]
[364940678,1749324646277,-151.0,0.00019184,2]
[364940679,1749324646287,-151.0,0.00019185,2]
[364940680,1749324646296,-151.0,0.00019185,2]
[364940681,1749324646306,-1162.98,0.00019185,2]
[364940682,1749324646315,-1162.98,0.00019185,2]
[364940683,1749324646325,-636.0,0.00019188,2]
[364940684,1749324646335,-801.0,0.00019188,2]
[364940685,1749324646345,-2000.0,0.00019188,2]
[364940686,1749324646355,-557.0,0.00019188,2]
[364940687,1749324646364,-926.0,0.00019188,2]
[364940688,1749324646374,-1274.0,0.00019188,2]
[364940689,1749324646384,-589.0,0.00019188,2]
[364940690,1749324646394,-1255.0,0.00019188,2]
[364940691,1749324646404,-1159.0,0.00019188,2]
[364940692,1749324646414,-796.51,0.000192,2]
[364940693,1749324646423,-1500.0,0.000192,7]
[364940694,1749324646433,-430.77220666,0.00019204,2]
[364940695,1749324646443,-209.80954317,0.00019204,2]
[364940696,1749324646453,-2715.12328229,0.00019205,2]
[364940697,1749324646463,-344.58076494,0.00019205,2]
[364940698,1749324646474,-678.67233741,0.00019205,2]
[364940699,1749324646489,-1867.302,0.00019216,2]
[364940700,1749324646499,-215.702,0.00019216,2]
[364940701,1749324646509,-300.0,0.00019217,2]
[364940702,1749324646519,-678.67233741,0.00019247,2]
[364940703,1749324646529,-64573.87601297,0.00019259,2]
[364940705,1749324650743,-2140.93805346,0.000209,30]
[364940708,1749325378367,838.72,0.00016002,2]
[364940709,1749325571531,200.0,0.00016606,2]
[364940743,1749325738554,355.26,0.00013699,2]
[364940756,1749325759357,-200.0,0.00017209,2]
[364940758,1749325759379,-1200.0,0.00017605,2]
[364940760,1749325759400,-8600.0,0.00017606,2]
[364940770,1749325760610,-555.91187845,0.00017606,2]
[364940771,1749325760893,-200.0,0.00017812,3]
[364940772,1749325760919,-683.88,0.00017885,2]
[364940773,1749325760942,-195.86,0.000179,2]
[364940774,1749325760963,-8364.34812155,0.00017943,2]
[364940775,1749325762789,-10000.0,0.00017943,2]
[364940776,1749325764929,-5535.65187845,0.00017943,2]
[364940777,1749325764952,-1000.0,0.00017952,2]
[364940778,1749325764974,-3464.34812155,0.00018,2]
[364940781,1749325767184,-2779.26048992,0.00018,2]
[364940782,1749325813487,-312.54,0.00018223,2]
[364940783,1749325813509,-250.0,0.00018247,2]
[364940784,1749325813531,-838.72,0.00018266,2]
[364940785,1749325813553,-164.95,0.00018295,2]
[364940806,1749325831711,-1200.0,0.00018322,2]
[364940807,1749325831723,-6775.14,0.00018323,2]
[364940808,1749325831732,-150.0,0.00018329,7]
[364940809,1749325831742,-150.0,0.0001833,2]
[364940810,1749325831752,-247.98,0.00018356,2]
[364940811,1749325831761,-1957.856,0.00018397,2]
[364940812,1749325831771,-207.4,0.00018397,2]
[364940813,1749325831780,-200.0,0.00018414,4]
[364940814,1749325831790,-2030.296672,0.00018452,2]
[364940815,1749325831800,-2105.41764886,0.00018507,2]
[364940816,1749325831809,-2183.31810187,0.00018562,2]
[364940817,1749325831819,-1162.98,0.000186,2]
[364940818,1749325831829,-1400.0,0.000186,6]
[364940819,1749325831838,-2264.10087164,0.00018617,2]
[364940820,1749325831848,-2347.87260389,0.00018672,2]
[364940821,1749325831857,-1162.98,0.00018678,2]
[364940822,1749325831867,-2900.0,0.000187,6]
[364940823,1749325831876,-2434.74389024,0.00018727,2]
[364940824,1749325831886,-2524.82941417,0.00018782,2]
[364940825,1749325831895,-4400.0,0.000188,6]
[364940826,1749325831905,-2618.2481025,0.00018837,2]
[364940827,1749325831914,-2715.12328229,0.00018892,2]
[364940828,1749325831924,-164.11,0.00018893,2]
[364940829,1749325831933,-5900.0,0.000189,6]
[364940830,1749325831944,-1000.0,0.00018906,2]
[364940831,1749325831953,-2815.58284374,0.00018947,2]
[364940832,1749325831963,-250.0,0.00019,2]
[364940833,1749325831972,-2919.75940895,0.00019002,2]
[364940834,1749325831982,-200.0,0.00019017,5]
[364940835,1749325831993,-6443.7957,0.00019041,2]
[364940836,1749325832003,-3027.79050709,0.00019057,2]
[364940837,1749325832014,-715.55041611,0.00019085,2]
[364940838,1749325832024,-452.87385762,0.00019085,2]
[364940839,1749325832035,-452.87385746,0.00019096,2]
[364940840,1749325832047,-354.34,0.000191,2]
[364940841,1749325832058,-2000.0,0.00019105,2]
[364940842,1749325832068,-200.0,0.00019105,2]
[364940843,1749325832080,-151.0,0.00019107,2]
[364940844,1749325832092,-452.87385746,0.00019108,2]
[364940845,1749325832101,-3139.81875585,0.00019112,2]
[364940846,1749325832112,-6544.91833211,0.00019117,2]
[364940847,1749325832123,-150.0,0.00019118,2]
[364940848,1749325832133,-944.0,0.00019118,2]
[364940849,1749325832143,-1164.0,0.00019118,2]
[364940850,1749325832154,-815.0,0.00019118,2]
[364940851,1749325832164,-636.0,0.00019118,2]
[364940852,1749325832176,-1159.0,0.00019118,2]
[364940853,1749325832186,-1274.0,0.00019118,2]
[364940855,1749325832196,-557.0,0.00019118,2]
[364940857,1749325832206,-2000.0,0.00019118,2]
[364940858,1749325832216,-589.0,0.00019118,2]
[364940861,1749325832226,-926.0,0.00019118,2]
[364940864,1749325832235,-1255.0,0.00019118,2]
[364940866,1749325832245,-7018.0,0.00019118,2]
[364940867,1749325832255,-4082.0,0.00019118,2]
[364940869,1749325832265,-296.54,0.00019118,2]
[364940871,1749325832274,-452.87385746,0.00019119,2]
[364940873,1749325832283,-452.87385746,0.0001913,2]
[364940875,1749325832293,-452.87385746,0.00019141,2]
[364940876,1749325832302,-150.0,0.00019145,2]
[364940878,1749325832311,-452.87385746,0.00019153,2]
[364940880,1749325832321,-176.8562,0.00019159,2]
[364940882,1749325832330,-196.64098304,0.00019159,2]
[364940884,1749325832340,-3540.02099776,0.00019159,2]
[364940885,1749325832350,-252.7375,0.00019159,2]
[364940887,1749325832359,-300.1036,0.00019159,2]
[364940889,1749325832369,-452.87385746,0.00019164,2]
[364940891,1749325832379,-3255.99204981,0.00019167,2]
[364940893,1749325832388,-255.76162976,0.00019173,2]
[364940895,1749325832399,-452.87385746,0.00019175,2]
[364940897,1749325832409,-1281.324,0.00019175,2]
[364940899,1749325832419,-715.55041605,0.00019175,2]
[364940901,1749325832428,-208.77,0.00019178,2]
[364940903,1749325832438,-150.0,0.00019185,2]
[364940904,1749325832447,-200.0,0.00019185,2]
[364940906,1749325832457,-150.0,0.00019185,2]
[364940908,1749325832466,-150.0,0.00019185,2]
[364940910,1749325832475,-1162.98,0.00019185,2]
[364940912,1749325832484,-1356.94,0.00019185,2]
[364940913,1749325832494,-1162.98,0.00019185,2]
[364940915,1749325832503,-263.93,0.00019185,2]
[364940917,1749325832513,-1162.98,0.00019185,2]
[364940919,1749325832522,-1162.98,0.00019185,2]
[364940921,1749325832532,-1162.98,0.00019185,2]
[364940922,1749325832541,-1162.98,0.00019185,2]
[364940924,1749325832551,-1162.98,0.00019185,2]
[364940926,1749325832561,-1162.98,0.00019185,2]
[364940928,1749325832570,-1162.98,0.00019185,2]
[364940929,1749325832580,-1162.98,0.00019185,2]
[364940931,1749325832589,-1162.98,0.00019185,2]
[364940933,1749325832600,-452.87385746,0.00019186,2]
[364940934,1749325832610,-452.87385746,0.00019198,2]
[364940935,1749325832620,-43297.48033198,0.000192,2]
[364940936,1749325832631,-1000.0,0.000192,2]
[364940937,1749325832643,-452.87385746,0.00019209,2]
[364940938,1749325832654,-150.0,0.00019212,2]
[364940939,1749325832664,-200.0,0.00019212,2]
[364940940,1749325832674,-150.0,0.00019212,2]
[364940941,1749325832684,-452.87385746,0.0001922,2]
[364940942,1749325832694,-3376.46375566,0.00019222,2]
[364940943,1749325832704,-452.87385746,0.00019231,2]
[364940944,1749325832715,-3540.02099774,0.00019239,2]
[364940945,1749325832724,-150.0,0.0001924,2]
[364940946,1749325832734,-150.0,0.0001924,2]
[364940947,1749325832744,-1493.841,0.00019241,2]
[364940948,1749325832753,-452.87385746,0.00019243,2]
[364940949,1749325832762,-1191.57,0.00019249,2]
[364940950,1749325832772,-452.87385746,0.00019254,2]
[364940951,1749325832781,-234.2709667,0.00019258,2]
[364940952,1749325832791,-177.84456676,0.00019258,2]
[364940953,1749325832800,-500.0,0.00019258,2]
[364940954,1749325832810,-621.29390014,0.00019258,2]
[364940955,1749325832819,-151.0,0.00019259,2]
[364940956,1749325832829,-294.932512,0.00019259,2]
[364940957,1749325832839,-500.0,0.00019259,2]
[364940958,1749325832849,-500.0,0.00019259,2]
[364940959,1749325832861,-500.0,0.00019259,2]
[364940960,1749325832872,-500.0,0.00019259,2]
[364940961,1749325832882,-500.0,0.00019259,2]
[364940962,1749325832891,-500.0,0.00019259,2]
[364940963,1749325832903,-500.0,0.00019259,2]
[364940964,1749325832912,-500.0,0.00019259,2]
[364940965,1749325832922,-500.0,0.00019259,2]
[364940966,1749325832932,-500.0,0.00019259,2]
[364940967,1749325832944,-500.0,0.00019259,2]
[364940968,1749325832955,-500.0,0.00019259,2]
[364940969,1749325832964,-500.0,0.00019259,2]
[364940970,1749325832974,-500.0,0.00019259,2]
[364940971,1749325832985,-500.0,0.00019259,2]
[364940972,1749325832994,-500.0,0.00019259,2]
[364940973,1749325833005,-500.0,0.00019259,2]
[364940974,1749325833015,-500.0,0.00019259,2]
[364940975,1749325833025,-500.0,0.00019259,2]
[364940976,1749325833035,-500.0,0.00019259,2]
[364940977,1749325833045,-500.0,0.00019259,2]
[364940978,1749325833054,-500.0,0.00019259,2]
[364940979,1749325833065,-500.0,0.00019259,2]
[364940980,1749325833075,-500.0,0.00019259,2]
[364940981,1749325833084,-500.0,0.00019259,2]
[364940982,1749325833094,-500.0,0.00019259,2]
[364940983,1749325833104,-500.0,0.00019259,2]
[364940984,1749325833114,-500.0,0.00019259,2]
[364940985,1749325833123,-500.0,0.00019259,2]
[364940986,1749325833134,-500.0,0.00019259,2]
[364940987,1749325833143,-500.0,0.00019259,2]
[364940988,1749325833154,-500.0,0.00019259,2]
[364940989,1749325833164,-500.0,0.00019259,2]
[364940990,1749325833173,-500.0,0.00019259,2]
[364940991,1749325833183,-500.0,0.00019259,2]
[364940992,1749325833193,-500.0,0.00019259,2]
[364940993,1749325833203,-500.0,0.00019259,2]
[364940994,1749325833213,-500.0,0.00019259,2]
[364940995,1749325833222,-500.0,0.00019259,2]
[364940996,1749325833231,-500.0,0.00019259,2]
[364940997,1749325833241,-500.0,0.00019259,2]
[364940998,1749325833251,-500.0,0.00019259,2]
[364940999,1749325833261,-500.0,0.00019259,2]
[364941000,1749325833271,-500.0,0.00019259,2]
[364941001,1749325833492,-500.0,0.00019259,2]
[364941002,1749325833504,-500.0,0.00019259,2]
[364941003,1749325833515,-500.0,0.00019259,2]
[364941004,1749325833526,-500.0,0.00019259,2]
[364941005,1749325833536,-500.0,0.00019259,2]
[364941006,1749325833546,-500.0,0.00019259,2]
[364941007,1749325833557,-500.0,0.00019259,2]
[364941008,1749325833567,-500.0,0.00019259,2]
[364941009,1749325833578,-500.0,0.00019259,2]
[364941010,1749325833588,-500.0,0.00019259,2]
[364941011,1749325833598,-500.0,0.00019259,2]
[364941012,1749325833608,-500.0,0.00019259,2]
[364941013,1749325833618,-500.0,0.00019259,2]
[364941014,1749325833627,-500.0,0.00019259,2]
[364941015,1749325833637,-297.57201854,0.00019259,2]
[364941016,1749325833931,-202.42798146,0.00019259,2]
[364941017,1749325833942,-500.0,0.00019259,2]
[364941018,1749325833952,-319.61431854,0.00019259,2]
[364941019,1749325833972,-180.38568146,0.00019259,2]
[364941020,1749325833981,-500.0,0.00019259,2]
[364941021,1749325833991,-500.0,0.00019259,2]
[364941022,1749325834001,-98.89667007,0.00019259,2]
[364941023,1749325834014,-401.10332993,0.00019259,2]
[364941024,1749325834024,-500.0,0.00019259,2]
[364941025,1749325834034,-157.59667007,0.00019259,2]
[364941026,1749325834060,-342.40332993,0.00019259,2]
[364941027,1749325834070,-500.0,0.00019259,2]
[364941028,1749325834079,-357.59667007,0.00019259,2]
[364941029,1749325834117,-852.0,0.00019118,2]
[364941030,1749325834126,-142.40332993,0.00019259,2]
[364941031,1749325834137,-500.0,0.00019259,2]
[364941032,1749325834148,-500.0,0.00019259,2]
[364941033,1749325834158,-500.0,0.00019259,2]
[364941034,1749325834167,-500.0,0.00019259,2]
[364941035,1749325834177,-500.0,0.00019259,2]
[364941036,1749325834187,-500.0,0.00019259,2]
[364941037,1749325834198,-500.0,0.00019259,2]
[364941038,1749325834208,-500.0,0.00019259,2]
[364941039,1749325834218,-500.0,0.00019259,2]
[364941040,1749325834228,-500.0,0.00019259,2]
[364941041,1749325834239,-500.0,0.00019259,2]